[Event "*** Qualifier 1: Titled Tuesday 3|2 Blitz"]
[Site "Chess.com"]
[Date "2017.04.04"]
[Round "3"]
[White "gmcorrales"]
[Black "macko06"]
[Result "1-0"]
[WhiteElo "2574"]
[BlackElo "2327"]
[TimeControl "180+2"]
[EndTime "13:35:34 PDT"]
[Termination "gmcorrales won by checkmate"]

1. e4 {[%clk 0:02:40.8]} 1... e6 {[%clk 0:02:59.6]} 2. d4 {[%clk 0:02:35.9]}
2... d5 {[%clk 0:03:01.5]} 3. e5 {[%clk 0:02:36.4]} 3... c5 {[%clk 0:03:02]} 4.
c3 {[%clk 0:02:37.5]} 4... Nc6 {[%clk 0:03:03.6]} 5. a3 {[%clk 0:02:38.9]} 5...
Qb6 {[%clk 0:03:04.7]} 6. Nf3 {[%clk 0:02:38.7]} 6... c4 {[%clk 0:03:04.9]} 7.
h4 {[%clk 0:02:38.6]} 7... Na5 {[%clk 0:03:04.6]} 8. Nbd2 {[%clk 0:02:39.3]}
8... Bd7 {[%clk 0:03:05]} 9. h5 {[%clk 0:02:40.3]} 9... h6 {[%clk 0:03:05.2]}
10. g3 {[%clk 0:02:41.6]} 10... Ne7 {[%clk 0:03:06.3]} 11. Bh3 {[%clk
0:02:42.8]} 11... Nc8 {[%clk 0:03:07.2]} 12. O-O {[%clk 0:02:43.2]} 12... Qc7
{[%clk 0:03:08.3]} 13. Nh4 {[%clk 0:02:42.8]} 13... Nb6 {[%clk 0:03:08.2]} 14.
Qg4 {[%clk 0:02:42.1]} 14... O-O-O {[%clk 0:03:00.2]} 15. f4 {[%clk 0:02:37.8]}
15... Rg8 {[%clk 0:02:56.1]} 16. Kh2 {[%clk 0:02:36.4]} 16... Be7 {[%clk
0:02:47.2]} 17. Rb1 {[%clk 0:02:36.8]} 17... Ba4 {[%clk 0:02:46.9]} 18. f5
{[%clk 0:02:37.7]} 18... Bxh4 {[%clk 0:02:31.4]} 19. Qxh4 {[%clk 0:02:38.3]}
19... exf5 {[%clk 0:02:19.3]} 20. Bxf5+ {[%clk 0:02:37.1]} 20... Bd7 {[%clk
0:02:20.7]} 21. Bh7 {[%clk 0:02:30]} 21... Rgf8 {[%clk 0:02:17.4]} 22. Nf3
{[%clk 0:02:30.8]} 22... Nb3 {[%clk 0:02:13]} 23. Bf4 {[%clk 0:02:31.4]} 23...
Be6 {[%clk 0:02:13.1]} 24. g4 {[%clk 0:02:29.3]} 24... Qd7 {[%clk 0:02:02.9]}
25. Kg3 {[%clk 0:02:28]} 25... Rh8 {[%clk 0:01:53.9]} 26. Bc2 {[%clk 0:02:28]}
26... Rdg8 {[%clk 0:01:54.3]} 27. Rg1 {[%clk 0:02:17.9]} 27... Qd8 {[%clk
0:01:47.7]} 28. Qxd8+ {[%clk 0:02:17.9]} 28... Rxd8 {[%clk 0:01:40.5]} 29. Rh1
{[%clk 0:02:19.2]} 29... Na5 {[%clk 0:01:37.8]} 30. g5 {[%clk 0:02:19.1]} 30...
Nc6 {[%clk 0:01:31.4]} 31. Rbg1 {[%clk 0:02:15.7]} 31... Ne7 {[%clk 0:01:23.6]}
32. gxh6 {[%clk 0:02:16.7]} 32... gxh6 {[%clk 0:01:22.5]} 33. Kf2 {[%clk
0:02:17.5]} 33... Bf5 {[%clk 0:01:19]} 34. Bd1 {[%clk 0:02:15.1]} 34... Rh7
{[%clk 0:01:13.3]} 35. Nh4 {[%clk 0:02:16]} 35... Be6 {[%clk 0:01:11.6]} 36. Rh2
{[%clk 0:02:16.8]} 36... Kd7 {[%clk 0:01:11.2]} 37. Rhg2 {[%clk 0:02:17.5]}
37... Nf5 {[%clk 0:00:58.9]} 38. Nxf5 {[%clk 0:02:17.9]} 38... Bxf5 {[%clk
0:01:00]} 39. Rg7 {[%clk 0:02:19.3]} 39... Rdh8 {[%clk 0:00:57.4]} 40. Rxh7
{[%clk 0:02:15.5]} 40... Rxh7 {[%clk 0:00:50.1]} 41. Rg8 {[%clk 0:02:15.2]}
41... Nc8 {[%clk 0:00:50.7]} 42. Ba4+ {[%clk 0:02:12.1]} 42... Ke7 {[%clk
0:00:49.3]} 43. Re8# {[%clk 0:02:12.5]} 1-0

[Event "*** Qualifier 1: Titled Tuesday 3|2 Blitz"]
[Site "Chess.com"]
[Date "2017.04.04"]
[Round "3"]
[White "Marcus_Harvey"]
[Black "Maung-Mg-KZH"]
[Result "0-1"]
[WhiteElo "2475"]
[BlackElo "2305"]
[TimeControl "180+2"]
[EndTime "13:35:59 PDT"]
[Termination "Maung-Mg-KZH won by resignation"]

1. Nf3 {[%clk 0:03:02]} 1... Nf6 {[%clk 0:02:59.5]} 2. b3 {[%clk 0:03:03.1]}
2... c6 {[%clk 0:03:00.7]} 3. Bb2 {[%clk 0:03:03.7]} 3... d5 {[%clk 0:03:02]} 4.
e3 {[%clk 0:03:05.4]} 4... Bg4 {[%clk 0:03:00.5]} 5. Be2 {[%clk 0:03:06.7]} 5...
Nbd7 {[%clk 0:03:00.8]} 6. O-O {[%clk 0:03:07.8]} 6... e6 {[%clk 0:02:59.2]} 7.
h3 {[%clk 0:03:07.6]} 7... Bxf3 {[%clk 0:02:57.3]} 8. Bxf3 {[%clk 0:03:08.4]}
8... Bd6 {[%clk 0:02:57.6]} 9. d4 {[%clk 0:03:09.2]} 9... O-O {[%clk 0:02:57.1]}
10. c4 {[%clk 0:03:08.7]} 10... Ne4 {[%clk 0:02:56.3]} 11. Bxe4 {[%clk
0:02:52.8]} 11... dxe4 {[%clk 0:02:56]} 12. Nc3 {[%clk 0:02:53.5]} 12... f5
{[%clk 0:02:55]} 13. d5 {[%clk 0:02:53.7]} 13... Nc5 {[%clk 0:02:50.7]} 14. dxc6
{[%clk 0:02:35.7]} 14... bxc6 {[%clk 0:02:49.5]} 15. Qc2 {[%clk 0:02:21.9]}
15... Nd3 {[%clk 0:02:47.3]} 16. Ne2 {[%clk 0:02:15.1]} 16... Qe7 {[%clk
0:02:43.6]} 17. Rad1 {[%clk 0:02:10.8]} 17... Bc7 {[%clk 0:02:36.6]} 18. Nc1
{[%clk 0:01:59.9]} 18... Qd6 {[%clk 0:02:34.3]} 19. g3 {[%clk 0:02:01]} 19...
Rad8 {[%clk 0:02:31.9]} 20. Rd2 {[%clk 0:01:47.4]} 20... h5 {[%clk 0:02:25.1]}
21. Nxd3 {[%clk 0:01:34.4]} 21... exd3 {[%clk 0:02:25.1]} 22. Qc3 {[%clk
0:01:35.8]} 22... Rf7 {[%clk 0:02:17.5]} 23. Rfd1 {[%clk 0:01:36.5]} 23... Qe7
{[%clk 0:02:12.4]} 24. Rxd3 {[%clk 0:01:37.1]} 24... Rxd3 {[%clk 0:02:11.3]} 25.
Qxd3 {[%clk 0:01:15]} 25... h4 {[%clk 0:02:11.6]} 26. gxh4 {[%clk 0:00:53.7]}
26... Qxh4 {[%clk 0:02:08.9]} 27. Qf1 {[%clk 0:00:54.9]} 27... f4 {[%clk
0:02:02.6]} 28. Qg2 {[%clk 0:00:32.8]} 28... fxe3 {[%clk 0:02:00.3]} 29. fxe3
{[%clk 0:00:32.3]} 29... Bb6 {[%clk 0:01:54]} 30. Bd4 {[%clk 0:00:25.4]} 30...
Bxd4 {[%clk 0:01:52.5]} 31. exd4 {[%clk 0:00:24.9]} 31... Rf5 {[%clk 0:01:51]}
32. Kh2 {[%clk 0:00:18.8]} 32... Rf2 {[%clk 0:01:49.1]} 0-1

[Event "*** Qualifier 1: Titled Tuesday 3|2 Blitz"]
[Site "Chess.com"]
[Date "2017.04.04"]
[Round "3"]
[White "A-Fier"]
[Black "aNaartjieZA"]
[Result "1-0"]
[WhiteElo "2490"]
[BlackElo "2293"]
[TimeControl "180+2"]
[EndTime "13:36:21 PDT"]
[Termination "A-Fier won by resignation"]

1. d4 {[%clk 0:03:02]} 1... e6 {[%clk 0:03:00.2]} 2. c4 {[%clk 0:02:59.8]} 2...
Nf6 {[%clk 0:02:58.3]} 3. Nc3 {[%clk 0:03:00.1]} 3... Bb4 {[%clk 0:02:59]} 4. e3
{[%clk 0:03:01.6]} 4... O-O {[%clk 0:02:59.4]} 5. Ne2 {[%clk 0:03:03.2]} 5... c5
{[%clk 0:03:00]} 6. a3 {[%clk 0:03:03.7]} 6... Bxc3+ {[%clk 0:03:00.5]} 7. Nxc3
{[%clk 0:03:05.6]} 7... d6 {[%clk 0:03:00.4]} 8. Be2 {[%clk 0:03:05.8]} 8... Nc6
{[%clk 0:02:59.2]} 9. O-O {[%clk 0:03:06.6]} 9... e5 {[%clk 0:02:59.4]} 10. dxc5
{[%clk 0:03:05.7]} 10... dxc5 {[%clk 0:03:00]} 11. Bf3 {[%clk 0:03:06.7]} 11...
Be6 {[%clk 0:02:17.4]} 12. b3 {[%clk 0:03:05.8]} 12... Qxd1 {[%clk 0:02:03.1]}
13. Rxd1 {[%clk 0:03:01.3]} 13... Rfd8 {[%clk 0:02:03.8]} 14. Bb2 {[%clk
0:03:01.9]} 14... Rac8 {[%clk 0:01:54.2]} 15. Nd5 {[%clk 0:02:48.3]} 15... Nd7
{[%clk 0:01:40.8]} 16. Rd2 {[%clk 0:02:45]} 16... Kf8 {[%clk 0:01:26.5]} 17.
Rad1 {[%clk 0:02:45.2]} 17... Ke8 {[%clk 0:01:26.6]} 18. Bc3 {[%clk 0:02:41.5]}
18... f5 {[%clk 0:01:15.7]} 19. h3 {[%clk 0:02:36.2]} 19... g6 {[%clk
0:00:59.5]} 20. g4 {[%clk 0:02:36.6]} 20... e4 {[%clk 0:00:57.3]} 21. Be2 {[%clk
0:02:37.3]} 21... Nde5 {[%clk 0:00:54.6]} 22. Bxe5 {[%clk 0:02:26.6]} 22... Nxe5
{[%clk 0:00:54]} 23. Nc7+ {[%clk 0:02:27.3]} 23... Rxc7 {[%clk 0:00:41]} 24.
Rxd8+ {[%clk 0:02:28]} 24... Ke7 {[%clk 0:00:42]} 25. Rh8 {[%clk 0:02:29]} 25...
Kf6 {[%clk 0:00:39.9]} 26. gxf5 {[%clk 0:02:29]} 26... Bxf5 {[%clk 0:00:40.2]}
27. Rd6+ {[%clk 0:02:27.9]} 27... Kg5 {[%clk 0:00:41.2]} 28. Kg2 {[%clk
0:02:25.4]} 28... Rf7 {[%clk 0:00:40.5]} 29. Rd5 {[%clk 0:02:22.4]} 29... Nd3
{[%clk 0:00:35.4]} 30. Bxd3 {[%clk 0:02:21.9]} 30... exd3 {[%clk 0:00:35.6]} 31.
e4 {[%clk 0:02:23.4]} 31... Rd7 {[%clk 0:00:36]} 32. Rxd7 {[%clk 0:02:10.9]}
32... Bxd7 {[%clk 0:00:36.7]} 33. Rd8 {[%clk 0:02:10.3]} 33... Bc6 {[%clk
0:00:37.7]} 34. Kf3 {[%clk 0:02:08.8]} 34... Kf6 {[%clk 0:00:37.8]} 35. Rxd3
{[%clk 0:02:08.9]} 35... Ke5 {[%clk 0:00:38.3]} 36. Ke3 {[%clk 0:02:07.9]} 36...
Bxe4 {[%clk 0:00:37.1]} 37. Rd7 {[%clk 0:02:08.9]} 37... Bg2 {[%clk 0:00:35]}
38. Rxh7 {[%clk 0:02:09.5]} 38... a5 {[%clk 0:00:35.6]} 39. h4 {[%clk
0:02:08.4]} 39... Bc6 {[%clk 0:00:33.4]} 40. h5 {[%clk 0:02:09.4]} 40... gxh5
{[%clk 0:00:34.1]} 41. Rxh5+ {[%clk 0:02:11.3]} 41... Kd6 {[%clk 0:00:35.3]} 42.
f4 {[%clk 0:02:12.8]} 42... Be8 {[%clk 0:00:35.7]} 43. Rh6+ {[%clk 0:02:12.9]}
43... Ke7 {[%clk 0:00:36.9]} 44. Ke4 {[%clk 0:02:14.1]} 44... Bc6+ {[%clk
0:00:36.9]} 45. Ke5 {[%clk 0:02:14.9]} 1-0

[Event "*** Qualifier 1: Titled Tuesday 3|2 Blitz"]
[Site "Chess.com"]
[Date "2017.04.04"]
[Round "3"]
[White "SantoBlue"]
[Black "Duhless"]
[Result "1-0"]
[WhiteElo "2539"]
[BlackElo "2708"]
[TimeControl "180+2"]
[EndTime "13:36:41 PDT"]
[Termination "SantoBlue won by checkmate"]

1. Nf3 {[%clk 0:03:02]} 1... g6 {[%clk 0:02:58.9]} 2. c4 {[%clk 0:02:57.6]} 2...
Bg7 {[%clk 0:02:58.7]} 3. g3 {[%clk 0:02:59.2]} 3... b6 {[%clk 0:02:58.7]} 4.
Bg2 {[%clk 0:02:59.4]} 4... Bb7 {[%clk 0:03:00.1]} 5. O-O {[%clk 0:03:01.1]}
5... c5 {[%clk 0:02:58.1]} 6. Nc3 {[%clk 0:03:02.1]} 6... Nf6 {[%clk 0:02:57.8]}
7. b3 {[%clk 0:03:03.2]} 7... O-O {[%clk 0:02:55.5]} 8. Bb2 {[%clk 0:03:04.5]}
8... d6 {[%clk 0:02:56.3]} 9. d3 {[%clk 0:03:04.1]} 9... Nbd7 {[%clk 0:02:55.9]}
10. Qd2 {[%clk 0:03:03.3]} 10... a6 {[%clk 0:02:55.5]} 11. a3 {[%clk 0:03:02.8]}
11... Qb8 {[%clk 0:02:52.6]} 12. b4 {[%clk 0:03:02.6]} 12... b5 {[%clk
0:02:52.8]} 13. Rab1 {[%clk 0:03:00.8]} 13... bxc4 {[%clk 0:02:50.2]} 14. dxc4
{[%clk 0:03:00.7]} 14... cxb4 {[%clk 0:02:39.6]} 15. axb4 {[%clk 0:03:01.6]}
15... Rc8 {[%clk 0:02:34.3]} 16. Qd3 {[%clk 0:02:44.6]} 16... Ra7 {[%clk
0:02:21.2]} 17. Rfc1 {[%clk 0:02:44.7]} 17... Bxf3 {[%clk 0:02:19]} 18. Bxf3
{[%clk 0:02:44.6]} 18... Ne5 {[%clk 0:02:19.1]} 19. Qd1 {[%clk 0:02:39.5]} 19...
Nxf3+ {[%clk 0:02:06.6]} 20. exf3 {[%clk 0:02:40.3]} 20... Rxc4 {[%clk
0:02:07.7]} 21. Nd5 {[%clk 0:02:23.1]} 21... Rxc1 {[%clk 0:02:06.8]} 22. Bxc1
{[%clk 0:02:23.3]} 22... Nxd5 {[%clk 0:02:02.2]} 23. Qxd5 {[%clk 0:02:23.5]}
23... Qb5 {[%clk 0:02:02.9]} 24. Qe4 {[%clk 0:02:21.2]} 24... d5 {[%clk
0:01:53.5]} 25. Qg4 {[%clk 0:02:18.5]} 25... e6 {[%clk 0:01:51.5]} 26. Qh4
{[%clk 0:02:15.6]} 26... Ra8 {[%clk 0:01:45]} 27. Be3 {[%clk 0:02:13.7]} 27...
Rc8 {[%clk 0:01:36]} 28. Qe7 {[%clk 0:02:12.6]} 28... a5 {[%clk 0:01:32.9]} 29.
h4 {[%clk 0:01:54.9]} 29... a4 {[%clk 0:01:26.7]} 30. Qa7 {[%clk 0:01:54.4]}
30... h5 {[%clk 0:01:22.4]} 31. Kg2 {[%clk 0:01:50.5]} 31... d4 {[%clk
0:01:11.8]} 32. Bxd4 {[%clk 0:01:20]} 32... Qd3 {[%clk 0:01:09.7]} 33. Bxg7
{[%clk 0:00:55.6]} 33... Qxb1 {[%clk 0:01:08.1]} 34. Bf6 {[%clk 0:00:56.6]}
34... Qxb4 {[%clk 0:01:03.2]} 35. Qe3 {[%clk 0:00:57.1]} 35... Qc5 {[%clk
0:00:47.8]} 36. Qh6 {[%clk 0:00:54]} 36... Qf8 {[%clk 0:00:48.7]} 37. Qh8#
{[%clk 0:00:55.2]} 1-0

[Event "*** Qualifier 1: Titled Tuesday 3|2 Blitz"]
[Site "Chess.com"]
[Date "2017.04.04"]
[Round "3"]
[White "HovmoellerHest"]
[Black "AllStarShark"]
[Result "0-1"]
[WhiteElo "2199"]
[BlackElo "2318"]
[TimeControl "180+2"]
[EndTime "13:36:56 PDT"]
[Termination "AllStarShark won by resignation"]

1. d4 {[%clk 0:03:00.1]} 1... d5 {[%clk 0:03:00.6]} 2. c4 {[%clk 0:02:59]} 2...
dxc4 {[%clk 0:03:01.9]} 3. Nf3 {[%clk 0:02:59.8]} 3... Nf6 {[%clk 0:03:02.3]} 4.
e3 {[%clk 0:03:00.6]} 4... Bg4 {[%clk 0:03:02.8]} 5. Bxc4 {[%clk 0:03:00.9]}
5... e6 {[%clk 0:03:04.2]} 6. O-O {[%clk 0:03:01.4]} 6... Bd6 {[%clk 0:03:03.3]}
7. Nbd2 {[%clk 0:03:00.6]} 7... O-O {[%clk 0:03:03.8]} 8. Qc2 {[%clk 0:02:59.5]}
8... Nc6 {[%clk 0:03:02.5]} 9. a3 {[%clk 0:02:56.2]} 9... e5 {[%clk 0:02:57.1]}
10. d5 {[%clk 0:02:52.1]} 10... Ne7 {[%clk 0:02:52]} 11. e4 {[%clk 0:02:49.9]}
11... Ng6 {[%clk 0:02:48.1]} 12. Re1 {[%clk 0:02:48.6]} 12... Nf4 {[%clk
0:02:46.5]} 13. Bf1 {[%clk 0:02:48.4]} 13... Nd7 {[%clk 0:02:27]} 14. b4 {[%clk
0:02:47.7]} 14... a6 {[%clk 0:02:27.2]} 15. h3 {[%clk 0:02:46.8]} 15... Bh5
{[%clk 0:02:24.7]} 16. g3 {[%clk 0:02:44.1]} 16... Bxf3 {[%clk 0:02:19.4]} 17.
Nxf3 {[%clk 0:02:41.6]} 17... Ng6 {[%clk 0:02:19.5]} 18. Bb2 {[%clk 0:02:37.5]}
18... f5 {[%clk 0:02:17]} 19. exf5 {[%clk 0:02:36.4]} 19... Ne7 {[%clk
0:01:59.8]} 20. g4 {[%clk 0:02:11.9]} 20... g6 {[%clk 0:01:59.7]} 21. Nxe5
{[%clk 0:01:51.7]} 21... gxf5 {[%clk 0:01:48.5]} 22. Nxd7 {[%clk 0:01:39.7]}
22... Qxd7 {[%clk 0:01:50.4]} 23. Qc3 {[%clk 0:01:36.1]} 23... Ng6 {[%clk
0:01:50.3]} 24. g5 {[%clk 0:01:11.4]} 24... Rae8 {[%clk 0:01:40.7]} 25. Rxe8
{[%clk 0:01:07.8]} 25... Rxe8 {[%clk 0:01:42.6]} 26. Re1 {[%clk 0:01:07.7]}
26... Be5 {[%clk 0:01:30.5]} 27. Qb3 {[%clk 0:01:01.1]} 27... Bh2+ {[%clk
0:01:17.3]} 28. Kxh2 {[%clk 0:01:01.8]} 28... Rxe1 {[%clk 0:01:18.3]} 29. Qc3
{[%clk 0:00:19.4]} 29... Rxf1 {[%clk 0:01:08.5]} 30. d6 {[%clk 0:00:18.7]} 30...
Rxf2+ {[%clk 0:01:07.1]} 31. Kg1 {[%clk 0:00:18.8]} 31... Rxb2 {[%clk
0:01:03.1]} 32. Qc4+ {[%clk 0:00:13.1]} 32... Kf8 {[%clk 0:00:59.1]} 33. dxc7
{[%clk 0:00:13.3]} 33... Qd1+ {[%clk 0:00:59]} 0-1

[Event "*** Qualifier 1: Titled Tuesday 3|2 Blitz"]
[Site "Chess.com"]
[Date "2017.04.04"]
[Round "3"]
[White "severomorskij"]
[Black "VSERGUEI"]
[Result "1/2-1/2"]
[WhiteElo "2633"]
[BlackElo "2577"]
[TimeControl "180+2"]
[EndTime "13:37:04 PDT"]
[Termination "Game drawn by repetition"]

1. d4 {[%clk 0:03:02]} 1... d5 {[%clk 0:03:00.4]} 2. c4 {[%clk 0:03:03]} 2... c6
{[%clk 0:03:01.5]} 3. Nc3 {[%clk 0:03:04.2]} 3... Nf6 {[%clk 0:03:02.6]} 4. Nf3
{[%clk 0:03:05.3]} 4... a6 {[%clk 0:03:03.8]} 5. c5 {[%clk 0:03:06.2]} 5... Nbd7
{[%clk 0:03:04.8]} 6. Bf4 {[%clk 0:03:07]} 6... Nh5 {[%clk 0:03:05.9]} 7. Bd2
{[%clk 0:03:07.7]} 7... g6 {[%clk 0:03:06.6]} 8. e4 {[%clk 0:03:06.2]} 8... dxe4
{[%clk 0:03:07.8]} 9. Nxe4 {[%clk 0:03:07.2]} 9... Ndf6 {[%clk 0:03:09]} 10.
Nxf6+ {[%clk 0:03:04.6]} 10... exf6 {[%clk 0:03:10.9]} 11. Bc4 {[%clk
0:03:03.5]} 11... Qe7+ {[%clk 0:03:11.5]} 12. Kf1 {[%clk 0:02:42.6]} 12... Be6
{[%clk 0:03:11.2]} 13. Qb3 {[%clk 0:02:36.1]} 13... Ng7 {[%clk 0:03:07.3]} 14.
Re1 {[%clk 0:02:28.3]} 14... Qd7 {[%clk 0:03:06.6]} 15. Bh6 {[%clk 0:02:11.9]}
15... O-O-O {[%clk 0:03:06.1]} 16. Bxg7 {[%clk 0:01:21.3]} 16... Bxc4+ {[%clk
0:03:05.1]} 17. Qxc4 {[%clk 0:01:23.2]} 17... Bxg7 {[%clk 0:03:05.7]} 18. h3
{[%clk 0:01:24.3]} 18... Rhe8 {[%clk 0:02:47.9]} 19. Rxe8 {[%clk 0:01:21.6]}
19... Qxe8 {[%clk 0:02:45.3]} 20. g3 {[%clk 0:01:21.5]} 20... Qe6 {[%clk
0:02:41.8]} 21. Qxe6+ {[%clk 0:01:20.5]} 21... fxe6 {[%clk 0:02:42.4]} 22. Ke2
{[%clk 0:01:20.6]} 22... Rd5 {[%clk 0:02:42.4]} 23. b4 {[%clk 0:01:18.3]} 23...
Kd7 {[%clk 0:02:27.8]} 24. Ke3 {[%clk 0:01:11.9]} 24... Bh6+ {[%clk 0:02:14.4]}
25. Kd3 {[%clk 0:01:00]} 25... e5 {[%clk 0:02:13.2]} 26. Re1 {[%clk 0:00:54]}
26... Bg7 {[%clk 0:02:11.2]} 27. Kc4 {[%clk 0:00:49.9]} 27... exd4 {[%clk
0:02:04.6]} 28. Nxd4 {[%clk 0:00:47.9]} 28... f5 {[%clk 0:02:05.7]} 29. Nf3
{[%clk 0:00:31]} 29... Bf6 {[%clk 0:02:02.8]} 30. h4 {[%clk 0:00:30.7]} 30... h6
{[%clk 0:02:03]} 31. Re3 {[%clk 0:00:24.3]} 31... g5 {[%clk 0:01:57]} 32. hxg5
{[%clk 0:00:25.1]} 32... hxg5 {[%clk 0:01:57.6]} 33. Rd3 {[%clk 0:00:26.1]}
33... Rxd3 {[%clk 0:01:40.6]} 34. Kxd3 {[%clk 0:00:27.1]} 34... Ke6 {[%clk
0:01:41.6]} 35. Nd2 {[%clk 0:00:21.4]} 35... Bd8 {[%clk 0:01:33.2]} 36. Nc4
{[%clk 0:00:20.1]} 36... Bc7 {[%clk 0:01:33.1]} 37. Kd4 {[%clk 0:00:21.2]} 37...
g4 {[%clk 0:01:28.3]} 38. a3 {[%clk 0:00:21.3]} 38... Kd7 {[%clk 0:01:18]} 39.
Ne3 {[%clk 0:00:17.3]} 39... Ke6 {[%clk 0:01:18.7]} 40. Nc4 {[%clk 0:00:18.5]}
40... Kd7 {[%clk 0:01:19]} 41. Ne3 {[%clk 0:00:19.1]} 41... Ke6 {[%clk
0:01:19.6]} 42. Nc4 {[%clk 0:00:18.6]} 1/2-1/2

[Event "*** Qualifier 1: Titled Tuesday 3|2 Blitz"]
[Site "Chess.com"]
[Date "2017.04.04"]
[Round "3"]
[White "FMchesstrainer"]
[Black "Tirantes"]
[Result "1/2-1/2"]
[WhiteElo "2354"]
[BlackElo "2201"]
[TimeControl "180+2"]
[EndTime "13:37:05 PDT"]
[Termination "Game drawn - insufficient material"]

1. d4 {[%clk 0:03:02]} 1... d5 {[%clk 0:02:59.6]} 2. Bg5 {[%clk 0:03:02.9]} 2...
Nf6 {[%clk 0:02:57.9]} 3. Bxf6 {[%clk 0:03:03.7]} 3... exf6 {[%clk 0:02:56.5]}
4. e3 {[%clk 0:03:05.1]} 4... c6 {[%clk 0:02:56.9]} 5. Nd2 {[%clk 0:03:04.9]}
5... Bd6 {[%clk 0:02:56.9]} 6. Ne2 {[%clk 0:03:04.7]} 6... O-O {[%clk
0:02:56.8]} 7. g3 {[%clk 0:03:05.7]} 7... Be6 {[%clk 0:02:52.6]} 8. Bg2 {[%clk
0:03:06]} 8... Qd7 {[%clk 0:02:53.5]} 9. c4 {[%clk 0:03:01.4]} 9... Na6 {[%clk
0:02:48.1]} 10. cxd5 {[%clk 0:03:00.2]} 10... Bxd5 {[%clk 0:02:46.7]} 11. O-O
{[%clk 0:02:56.5]} 11... Bxg2 {[%clk 0:02:46.1]} 12. Kxg2 {[%clk 0:02:57.6]}
12... Rfe8 {[%clk 0:02:46.8]} 13. a3 {[%clk 0:02:57.1]} 13... Rad8 {[%clk
0:02:46.8]} 14. b4 {[%clk 0:02:56.8]} 14... Nc7 {[%clk 0:02:46.1]} 15. Nc3
{[%clk 0:02:55.1]} 15... Ne6 {[%clk 0:02:36.1]} 16. h4 {[%clk 0:02:45.7]} 16...
g6 {[%clk 0:02:28.2]} 17. Qf3 {[%clk 0:02:45.1]} 17... f5 {[%clk 0:02:26.8]} 18.
Nc4 {[%clk 0:02:42.3]} 18... Bc7 {[%clk 0:02:23.2]} 19. Rfd1 {[%clk 0:02:42.7]}
19... Ng7 {[%clk 0:02:15.7]} 20. d5 {[%clk 0:02:40.3]} 20... Nh5 {[%clk
0:01:56.4]} 21. dxc6 {[%clk 0:02:35.8]} 21... Qxc6 {[%clk 0:01:56.3]} 22. Qxc6
{[%clk 0:02:35.1]} 22... bxc6 {[%clk 0:01:57]} 23. Rxd8 {[%clk 0:02:27.3]} 23...
Rxd8 {[%clk 0:01:55.9]} 24. Rd1 {[%clk 0:02:28.8]} 24... Rxd1 {[%clk 0:01:51.9]}
25. Nxd1 {[%clk 0:02:29.7]} 25... Nf6 {[%clk 0:01:52.6]} 26. Nc3 {[%clk
0:02:17.5]} 26... Ne4 {[%clk 0:01:44.4]} 27. Ne2 {[%clk 0:02:18.2]} 27... Kf8
{[%clk 0:01:38.9]} 28. Nd4 {[%clk 0:02:18.9]} 28... c5 {[%clk 0:01:35.6]} 29.
Nb5 {[%clk 0:02:19.3]} 29... Bb6 {[%clk 0:01:21.5]} 30. f3 {[%clk 0:02:17.6]}
30... Nf6 {[%clk 0:01:16.3]} 31. Nxb6 {[%clk 0:02:13.2]} 31... axb6 {[%clk
0:01:16.9]} 32. bxc5 {[%clk 0:02:14.8]} 32... bxc5 {[%clk 0:01:17.4]} 33. a4
{[%clk 0:02:08.6]} 33... Ke7 {[%clk 0:01:12.2]} 34. a5 {[%clk 0:02:09.7]} 34...
Kd7 {[%clk 0:01:10.1]} 35. a6 {[%clk 0:02:11]} 35... Kc6 {[%clk 0:01:09.4]} 36.
a7 {[%clk 0:02:12.3]} 36... Kb7 {[%clk 0:01:10.4]} 37. Kf2 {[%clk 0:02:13.8]}
37... Nd5 {[%clk 0:01:05]} 38. Ke2 {[%clk 0:02:12.5]} 38... Nb4 {[%clk
0:01:01.9]} 39. Kd2 {[%clk 0:02:11]} 39... Nc6 {[%clk 0:01:01.3]} 40. Kc3 {[%clk
0:02:11.6]} 40... Nxa7 {[%clk 0:01:01.8]} 41. Nd6+ {[%clk 0:02:12.7]} 41... Kc6
{[%clk 0:01:02.1]} 42. Nxf7 {[%clk 0:02:14.4]} 42... Nb5+ {[%clk 0:01:00.8]} 43.
Kd3 {[%clk 0:02:13.4]} 43... Nd6 {[%clk 0:00:51.3]} 44. Ng5 {[%clk 0:02:08.2]}
44... h6 {[%clk 0:00:45.5]} 45. Nh3 {[%clk 0:02:09.3]} 45... Kb5 {[%clk
0:00:35.4]} 46. Nf4 {[%clk 0:02:09.2]} 46... g5 {[%clk 0:00:35.9]} 47. hxg5
{[%clk 0:02:05.7]} 47... hxg5 {[%clk 0:00:36.8]} 48. Ne6 {[%clk 0:02:07.6]}
48... g4 {[%clk 0:00:37]} 49. fxg4 {[%clk 0:02:07.2]} 49... fxg4 {[%clk
0:00:37.8]} 50. e4 {[%clk 0:02:01]} 50... Kb4 {[%clk 0:00:38.7]} 51. e5 {[%clk
0:02:00]} 51... Nf5 {[%clk 0:00:35.5]} 52. Nxc5 {[%clk 0:01:58.7]} 52... Kxc5
{[%clk 0:00:34.8]} 53. Ke4 {[%clk 0:02:00.6]} 53... Nxg3+ {[%clk 0:00:31.9]} 54.
Kf4 {[%clk 0:02:00.7]} 54... Kd5 {[%clk 0:00:30.3]} 55. Kxg4 {[%clk 0:02:00.3]}
55... Kxe5 {[%clk 0:00:30.7]} 1/2-1/2

[Event "*** Qualifier 1: Titled Tuesday 3|2 Blitz"]
[Site "Chess.com"]
[Date "2017.04.04"]
[Round "3"]
[White "Th3ChessViking"]
[Black "Storne89"]
[Result "1-0"]
[WhiteElo "2329"]
[BlackElo "2531"]
[TimeControl "180+2"]
[EndTime "13:37:15 PDT"]
[Termination "Th3ChessViking won by resignation"]

1. c4 {[%clk 0:03:02]} 1... e5 {[%clk 0:03:00.7]} 2. g3 {[%clk 0:02:50.2]} 2...
Nc6 {[%clk 0:02:58.9]} 3. Bg2 {[%clk 0:02:51.3]} 3... Bc5 {[%clk 0:03:00.6]} 4.
Nc3 {[%clk 0:02:51.8]} 4... d6 {[%clk 0:03:01.7]} 5. e3 {[%clk 0:02:35.5]} 5...
a6 {[%clk 0:03:02.8]} 6. Nge2 {[%clk 0:02:34.2]} 6... Ba7 {[%clk 0:03:03.7]} 7.
O-O {[%clk 0:02:08]} 7... h5 {[%clk 0:03:04.1]} 8. f4 {[%clk 0:01:56.2]} 8... h4
{[%clk 0:03:02.1]} 9. Nd5 {[%clk 0:01:56.4]} 9... hxg3 {[%clk 0:02:53.3]} 10.
Nxg3 {[%clk 0:01:47.5]} 10... Qh4 {[%clk 0:02:39.5]} 11. Nxc7+ {[%clk
0:01:35.6]} 11... Kd8 {[%clk 0:02:40.5]} 12. Nxa8 {[%clk 0:01:34.6]} 12... Qxh2+
{[%clk 0:02:39.3]} 13. Kf2 {[%clk 0:01:35.8]} 13... Bh3 {[%clk 0:02:41]} 14. Qf3
{[%clk 0:01:31.6]} 14... Nf6 {[%clk 0:02:41.7]} 15. Rh1 {[%clk 0:00:52.8]} 15...
Ng4+ {[%clk 0:02:02.6]} 16. Kf1 {[%clk 0:00:45.3]} 16... Qxh1+ {[%clk
0:01:36.6]} 17. Nxh1 {[%clk 0:00:35.4]} 17... Nh2+ {[%clk 0:01:37.7]} 18. Ke2
{[%clk 0:00:30.5]} 18... Nxf3 {[%clk 0:01:38.6]} 19. Bxf3 {[%clk 0:00:31.3]}
19... Kd7 {[%clk 0:01:29.9]} 20. Nf2 {[%clk 0:00:30.2]} 20... Be6 {[%clk
0:01:28.1]} 21. fxe5 {[%clk 0:00:21.3]} 21... dxe5 {[%clk 0:01:25.8]} 22. b3
{[%clk 0:00:22]} 22... Rxa8 {[%clk 0:01:25.2]} 23. Bb2 {[%clk 0:00:23.1]} 23...
f6 {[%clk 0:01:20.9]} 24. Rg1 {[%clk 0:00:23]} 24... g5 {[%clk 0:01:18.5]} 25.
Ne4 {[%clk 0:00:23.9]} 25... Ke7 {[%clk 0:01:15.1]} 26. Ba3+ {[%clk 0:00:24.4]}
26... Kf7 {[%clk 0:01:11.3]} 27. Nd6+ {[%clk 0:00:25.9]} 27... Kg6 {[%clk
0:01:12.7]} 28. Nxb7 {[%clk 0:00:27.8]} 28... Rc8 {[%clk 0:01:08.3]} 29. Nd6
{[%clk 0:00:27.5]} 29... Rc7 {[%clk 0:01:09.8]} 30. Rh1 {[%clk 0:00:24.6]} 30...
f5 {[%clk 0:00:59.5]} 31. Bh5+ {[%clk 0:00:18.5]} 1-0